Workbook

Sheet Баланс энергии
A1: Заполняется в тыс. кВт.ч. ! | AF1: тыс. кВт.ч.
A3: Баланс электрической энергии по сетям ВН, СН1, СН2, и НН | H3: =#REF! -> 
A5: № п.п. | B5: Показатели | C5: Принято регулирующим органом на 2023 год | H5: Факт за 2023 год | M5: Принято регулирующим органом на 2024 год | R5: По данным организации на 2025 год | W5: По данным организации на 1 полугодие 2025 года | AB5: По данным организации на 2 полугодие 2025 года | AG5: По данным экспертов на 2025 год | AL5: По данным экспертов на 1 полугодие 2025 года | AQ5: По данным экспертов на 2 полугодие 2025 года
C6: Всего | D6: ВН | E6: СН1 | F6: СН2 | G6: НН | H6: Всего | I6: ВН | J6: СН1 | K6: СН2 | L6: НН | M6: Всего | N6: ВН | O6: СН1 | P6: СН2 | Q6: НН | R6: Всего | S6: ВН | T6: СН1 | U6: СН2 | V6: НН | W6: Всего | X6: ВН | Y6: СН1 | Z6: СН2 | AA6: НН | AB6: Всего | AC6: ВН | AD6: СН1 | AE6: СН2 | AF6: НН | AG6: Всего | AH6: ВН | AI6: СН1 | AJ6: СН2 | AK6: НН | AL6: Всего | AM6: ВН | AN6: СН1 | AO6: СН2 | AP6: НН | AQ6: Всего | AR6: ВН | AS6: СН1 | AT6: СН2 | AU6: НН
A7: 1 | B7: 2 | C7: 3 | D7: 4 | E7: 5 | F7: 6 | G7: 7 | H7: 18 | I7: 19 | J7: 20 | K7: 21 | L7: 22 | M7: 33 | N7: 34 | O7: 35 | P7: 36 | Q7: 37 | R7: 48 | S7: 49 | T7: 50 | U7: 51 | V7: 52 | W7: 53 | X7: 54 | Y7: 55 | Z7: 56 | AA7: 57 | AB7: 58 | AC7: 59 | AD7: 60 | AE7: 61 | AF7: 62 | AG7: 63 | AH7: 64 | AI7: 65 | AJ7: 66 | AK7: 67 | AL7: 53 | AM7: 54 | AN7: 55 | AO7: 56 | AP7: 57 | AQ7: 58 | AR7: 59 | AS7: 60 | AT7: 61 | AU7: 62
A8: 1. | B8: Поступление эл.энергии в сеть , ВСЕГО | C8: =C18+C20+C21 -> 182430.5558 | D8: =D14+D15+D16+D17 -> 179517.3626 | E8: =E9+E14+E15+E16+E17 -> 2599.375077 | F8: =F9+F14+F15+F16+F17 -> 182430.5558 | G8: =G9+G14+G15+G16+G17 -> 102351.0992 | H8: =H18+H20+H21 -> 185376.034 | I8: =I14+I15+I16+I17 -> 182033.281 | J8: =J9+J14+J15+J16+J17 -> 3311.04 | K8: =K9+K14+K15+K16+K17 -> 185376.034 | L8: =L9+L14+L15+L16+L17 -> 103354.6391 | M8: =M18+M20+M21 -> 186963.842 | N8: =N14+N15+N16+N17 -> 183399.45 | O8: =O9+O14+O15+O16+O17 -> 3344.062 | P8: =P9+P14+P15+P16+P17 -> 186963.842 | Q8: =Q9+Q14+Q15+Q16+Q17 -> 105805.6977 | R8: =R18+R20+R21 -> 185376.034 | S8: =S14+S15+S16+S17 -> 182064.994 | T8: =T9+T14+T15+T16+T17 -> 3311.04 | U8: =U9+U14+U15+U16+U17 -> 185376.034 | V8: =V9+V14+V15+V16+V17 -> 103354.6391 | W8: =W18+W20+W21 -> 92976.31 | X8: =X14+X15+X16+X17 -> 91337.519 | Y8: =Y9+Y14+Y15+Y16+Y17 -> 1638.791 | Z8: =Z9+Z14+Z15+Z16+Z17 -> 92976.31 | AA8: =AA9+AA14+AA15+AA16+AA17 -> 51931.4419 | AB8: =AB18+AB20+AB21 -> 92399.724 | AC8: =AC14+AC15+AC16+AC17 -> 90727.475 | AD8: =AD9+AD14+AD15+AD16+AD17 -> 1672.249 | AE8: =AE9+AE14+AE15+AE16+AE17 -> 92399.724 | AF8: =AF9+AF14+AF15+AF16+AF17 -> 51423.1972 | AG8: =AG18+AG20+AG21 -> 0 | AH8: =AH14+AH15+AH16+AH17 -> 0 | AI8: =AI9+AI14+AI15+AI16+AI17 -> 0 | AJ8: =AJ9+AJ14+AJ15+AJ16+AJ17 -> 0 | AK8: =AK9+AK14+AK15+AK16+AK17 -> 0 | AL8: =AL18+AL20+AL21 -> 0 | AM8: =AM14+AM15+AM16+AM17 -> 0 | AN8: =AN9+AN14+AN15+AN16+AN17 -> 0 | AO8: =AO9+AO14+AO15+AO16+AO17 -> 0 | AP8: =AP9+AP14+AP15+AP16+AP17 -> 0 | AQ8: =AQ18+AQ20+AQ21 -> 0 | AR8: =AR14+AR15+AR16+AR17 -> 0 | AS8: =AS9+AS14+AS15+AS16+AS17 -> 0 | AT8: =AT9+AT14+AT15+AT16+AT17 -> 0 | AU8: =AU9+AU14+AU15+AU16+AU17 -> 0
A9: 1.1. | B9: из смежной сети, всего | C9: х | D9: х | E9: =E11 -> 0 | F9: =F11+F12 -> 182116.7377 | G9: =G11+G12+G13 -> 102351.0992 | H9: х | I9: х | J9: =J11 -> 0 | K9: =K11+K12 -> 185344.321 | L9: =L11+L12+L13 -> 103354.6391 | M9: х | N9: х | O9: =O11 -> 0 | P9: =P11+P12 -> 186743.512 | Q9: =Q11+Q12+Q13 -> 105805.6977 | R9: х | S9: х | T9: =T11 -> 0 | U9: =U11+U12 -> 185376.034 | V9: =V11+V12+V13 -> 103354.6391 | W9: х | X9: х | Y9: =Y11 -> 0 | Z9: =Z11+Z12 -> 92976.31 | AA9: =AA11+AA12+AA13 -> 51931.4419 | AB9: х | AC9: х | AD9: =AD11 -> 0 | AE9: =AE11+AE12 -> 92399.724 | AF9: =AF11+AF12+AF13 -> 51423.1972 | AG9: х | AH9: х | AI9: =AI11 -> 0 | AJ9: =AJ11+AJ12 -> 0 | AK9: =AK11+AK12+AK13 -> 0 | AL9: х | AM9: х | AN9: =AN11 -> 0 | AO9: =AO11+AO12 -> 0 | AP9: =AP11+AP12+AP13 -> 0 | AQ9: х | AR9: х | AS9: =AS11 -> 0 | AT9: =AT11+AT12 -> 0 | AU9: =AU11+AU12+AU13 -> 0
B10: в том числе из сети | C10: х | D10: х | E10: х | F10: х | G10: х | H10: х | I10: х | J10: х | K10: х | L10: х | M10: х | N10: х | O10: х | P10: х | Q10: х | R10: х | S10: х | T10: х | U10: х | V10: х | W10: х | X10: х | Y10: х | Z10: х | AA10: х | AB10: х | AC10: х | AD10: х | AE10: х | AF10: х | AG10: х | AH10: х | AI10: х | AJ10: х | AK10: х | AL10: х | AM10: х | AN10: х | AO10: х | AP10: х | AQ10: х | AR10: х | AS10: х | AT10: х | AU10: х
A11: 1.1.1. | B11: ВН | C11: х | D11: х | F11: =D8-D18-D20-D21-E11-G11 -> 179517.3626 | H11: х | I11: х | K11: =I8-I18-I20-I21-J11-L11 -> 182033.281 | M11: х | N11: х | P11: =N8-N18-N20-N21-O11-Q11 -> 183399.45 | R11: х | S11: х | U11: =S8-S18-S20-S21-T11-V11 -> 182064.994 | W11: х | X11: х | Z11: =X8-X18-X20-X21-Y11-AA11 -> 91337.519 | AB11: х | AC11: х | AE11: =AC8-AC18-AC20-AC21-AD11-AF11 -> 90727.475 | AG11: х | AH11: х | AJ11: =AH8-AH18-AH20-AH21-AI11-AK11 -> 0 | AL11: х | AM11: х | AO11: =AM8-AM18-AM20-AM21-AN11-AP11 -> 0 | AQ11: х | AR11: х | AT11: =AR8-AR18-AR20-AR21-AS11-AU11 -> 0
A12: 1.1.2. | B12: СН1 | C12: х | D12: х | E12: х | F12: =E8-E18-E20-E21-G12 -> 2599.375077 | H12: х | I12: х | J12: х | K12: =J8-J18-J20-J21-L12 -> 3311.04 | M12: х | N12: х | O12: х | P12: =O8-O18-O20-O21-Q12 -> 3344.062 | R12: х | S12: х | T12: х | U12: =T8-T18-T20-T21-V12 -> 3311.04 | W12: х | X12: х | Y12: х | Z12: =Y8-Y18-Y20-Y21-AA12 -> 1638.791 | AB12: х | AC12: х | AD12: х | AE12: =AD8-AD18-AD20-AD21-AF12 -> 1672.249 | AG12: х | AH12: х | AI12: х | AJ12: =AI8-AI18-AI20-AI21-AK12 -> 0 | AL12: х | AM12: х | AN12: х | AO12: =AN8-AN18-AN20-AN21-AP12 -> 0 | AQ12: х | AR12: х | AS12: х | AT12: =AS8-AS18-AS20-AS21-AU12 -> 0
A13: 1.1.3. | B13: СН2 | C13: х | D13: х | E13: х | F13: х | G13: =F8-F18-F20-F21 -> 102351.0992 | H13: х | I13: х | J13: х | K13: х | L13: =K8-K18-K20-K21 -> 103354.6391 | M13: х | N13: х | O13: х | P13: х | Q13: =P8-P18-P20-P21 -> 105805.6977 | R13: х | S13: х | T13: х | U13: х | V13: =U8-U18-U20-U21 -> 103354.6391 | W13: х | X13: х | Y13: х | Z13: х | AA13: =Z8-Z18-Z20-Z21 -> 51931.4419 | AB13: х | AC13: х | AD13: х | AE13: х | AF13: =AE8-AE18-AE20-AE21 -> 51423.1972 | AG13: х | AH13: х | AI13: х | AJ13: х | AK13: =AJ8-AJ18-AJ20-AJ21 -> 0 | AL13: х | AM13: х | AN13: х | AO13: х | AP13: =AO8-AO18-AO20-AO21 -> 0 | AQ13: х | AR13: х | AS13: х | AT13: х | AU13: =AT8-AT18-AT20-AT21 -> 0
A14: 1.2. | B14: от электростанций | C14: =SUM(D14:G14) -> 0 | H14: =SUM(I14:L14) -> 0 | M14: =SUM(N14:Q14) -> 0 | R14: =SUM(S14:V14) -> 0 | W14: =SUM(X14:AA14) -> 0 | AB14: =SUM(AC14:AF14) -> 0 | AG14: =SUM(AH14:AK14) -> 0 | AL14: =SUM(AM14:AP14) -> 0 | AQ14: =SUM(AR14:AU14) -> 0
A15: 1.3. | B15: от ПАО "Россети ФСК ЕЭС" | C15: =SUM(D15:G15) -> 0 | H15: =SUM(I15:L15) -> 0 | M15: =SUM(N15:Q15) -> 0 | R15: =SUM(S15:V15) -> 0 | W15: =SUM(X15:AA15) -> 0 | AB15: =SUM(AC15:AF15) -> 0 | AG15: =SUM(AH15:AK15) -> 0 | AL15: =SUM(AM15:AP15) -> 0 | AQ15: =SUM(AR15:AU15) -> 0
A16: 1.4. | B16: от филиала "Владимирэнерго" ПАО «Россети Центр и Приволжье» | C16: =SUM(D16:G16) -> 182116.7377 | D16: 179517.3626 | E16: 2599.375077 | H16: =SUM(I16:L16) -> 185376.034 | I16: 182033.281 | J16: 3311.04 | K16: 31.713 | M16: =SUM(N16:Q16) -> 186743.512 | N16: 183399.45 | O16: 3344.062 | P16: 0 | R16: =SUM(S16:V16) -> 185376.034 | S16: =X16+AC16 -> 182064.994 | T16: =Y16+AD16 -> 3311.04 | U16: 0 | V16: 0 | W16: =SUM(X16:AA16) -> 92976.31 | X16: 91337.519 | Y16: 1638.791 | AB16: =SUM(AC16:AF16) -> 92399.724 | AC16: 90727.475 | AD16: 1672.249 | AG16: =SUM(AH16:AK16) -> 0 | AL16: =SUM(AM16:AP16) -> 0 | AQ16: =SUM(AR16:AU16) -> 0
A17: 1.5. | B17: от других сетевых организаций | C17: =SUM(D17:G17) -> 313.8181415 | F17: 313.8181415 | H17: =SUM(I17:L17) -> 0 | M17: =SUM(N17:Q17) -> 220.33 | N17: 0 | O17: 0 | P17: 220.33 | R17: =SUM(S17:V17) -> 0 | W17: =SUM(X17:AA17) -> 0 | AB17: =SUM(AC17:AF17) -> 0 | AG17: =SUM(AH17:AK17) -> 0 | AL17: =SUM(AM17:AP17) -> 0 | AQ17: =SUM(AR17:AU17) -> 0
A18: 2. | B18: Потери электроэнергии в сети | C18: =SUM(D18:G18) -> 13372.09571 | D18: =D8*D19/100 -> 0 | E18: =E8*E19/100 -> 0 | F18: =F8*F19/100 -> 7151.277788 | G18: =G8*G19/100 -> 6220.817921 | H18: =SUM(I18:L18) -> 13424.3422 | I18: =I8*I19/100 -> 0 | J18: =J8*J19/100 -> 0 | K18: =K8*K19/100 -> 6999.1939 | L18: =L8*L19/100 -> 6425.1483 | M18: =SUM(N18:Q18) -> 13704.5 | N18: =N8*N19/100 -> 0 | O18: =O8*O19/100 -> 0 | P18: =P8*P19/100 -> 7328.982606 | Q18: =Q8*Q19/100 -> 6375.517394 | R18: =SUM(S18:V18) -> 13424.3422 | S18: =S8*S19/100 -> 0 | T18: =T8*T19/100 -> 0 | U18: =U8*U19/100 -> 6999.1939 | V18: =V8*V19/100 -> 6425.1483 | W18: =SUM(X18:AA18) -> 6330.778 | X18: =X8*X19/100 -> 0 | Y18: =Y8*Y19/100 -> 0 | Z18: =Z8*Z19/100 -> 3385.7001 | AA18: =AA8*AA19/100 -> 2945.0779 | AB18: =SUM(AC18:AF18) -> 7093.5641 | AC18: =AC8*AC19/100 -> 0 | AD18: =AD8*AD19/100 -> 0 | AE18: =AE8*AE19/100 -> 3613.4938 | AF18: =AF8*AF19/100 -> 3480.0703 | AG18: =SUM(AH18:AK18) -> 0 | AH18: =AH8*AH19/100 -> 0 | AI18: =AI8*AI19/100 -> 0 | AJ18: =AJ8*AJ19/100 -> 0 | AK18: =AK8*AK19/100 -> 0 | AL18: =SUM(AM18:AP18) -> 0 | AM18: =AM8*AM19/100 -> 0 | AN18: =AN8*AN19/100 -> 0 | AO18: =AO8*AO19/100 -> 0 | AP18: =AP8*AP19/100 -> 0 | AQ18: =SUM(AR18:AU18) -> 0 | AR18: =AR8*AR19/100 -> 0 | AS18: =AS8*AS19/100 -> 0 | AT18: =AT8*AT19/100 -> 0 | AU18: =AU8*AU19/100 -> 0
A19: 2.1. | B19: то же в % (п.2./п.1.) | C19: =IF(C8=0,0,C18/C8*100) -> 7.3299649 | F19: 3.92 | G19: 6.07791999 | H19: =IF(H8=0,0,H18/H8*100) -> 7.24168163 | K19: 3.775673559 | L19: 6.216603682 | M19: =IF(M8=0,0,M18/M8*100) -> 7.330026947 | P19: 3.92 | Q19: 6.025684374 | R19: =IF(R8=0,0,R18/R8*100) -> 7.24168163 | U19: 3.775673559 | V19: 6.216603682 | W19: =IF(W8=0,0,W18/W8*100) -> 6.809022642 | Z19: 3.641465337 | AA19: 5.671088251 | AB19: =IF(AB8=0,0,AB18/AB8*100) -> 7.677040356 | AE19: 3.910719257 | AF19: 6.767510558 | AG19: =IF(AG8=0,0,AG18/AG8*100) -> 0 | AL19: =IF(AL8=0,0,AL18/AL8*100) -> 0 | AQ19: =IF(AQ8=0,0,AQ18/AQ8*100) -> 0
A20: 3. | B20: Расход электроэнергии на производственные и хознужды | C20: =SUM(D20:G20) -> 0 | H20: =SUM(I20:L20) -> 0 | M20: =SUM(N20:Q20) -> 0 | R20: =SUM(S20:V20) -> 0 | W20: =SUM(X20:AA20) -> 0 | AB20: =SUM(AC20:AF20) -> 0 | AG20: =SUM(AH20:AK20) -> 0 | AL20: =SUM(AM20:AP20) -> 0 | AQ20: =SUM(AR20:AU20) -> 0
A21: 4. | B21: Полезный отпуск из сети | C21: =SUM(D21:G21) -> 169058.4601 | D21: =D22+D23+D24 -> 0 | E21: =E22+E23+E24 -> 0 | F21: =F22+F23+F24 -> 72928.17878 | G21: =G8-G18-G20 -> 96130.28132 | H21: =SUM(I21:L21) -> 171951.6918 | I21: =I22+I23+I24 -> 0 | J21: =J22+J23+J24 -> 0 | K21: =K22+K23+K24 -> 75022.201 | L21: =L8-L18-L20 -> 96929.4908 | M21: =SUM(N21:Q21) -> 173259.342 | N21: =N22+N23+N24 -> 0 | O21: =O22+O23+O24 -> 0 | P21: =P22+P23+P24 -> 73829.16169 | Q21: =Q8-Q18-Q20 -> 99430.18031 | R21: =SUM(S21:V21) -> 171951.6918 | S21: =S22+S23+S24 -> 0 | T21: =T22+T23+T24 -> 0 | U21: =U22+U23+U24 -> 75022.201 | V21: =V8-V18-V20 -> 96929.4908 | W21: =SUM(X21:AA21) -> 86645.532 | X21: =X22+X23+X24 -> 0 | Y21: =Y22+Y23+Y24 -> 0 | Z21: =Z22+Z23+Z24 -> 37659.168 | AA21: =AA8-AA18-AA20 -> 48986.364 | AB21: =SUM(AC21:AF21) -> 85306.1599 | AC21: =AC22+AC23+AC24 -> 0 | AD21: =AD22+AD23+AD24 -> 0 | AE21: =AE22+AE23+AE24 -> 37363.033 | AF21: =AF8-AF18-AF20 -> 47943.1269 | AG21: =SUM(AH21:AK21) -> 0 | AH21: =AH22+AH23+AH24 -> 0 | AI21: =AI22+AI23+AI24 -> 0 | AJ21: =AJ22+AJ23+AJ24 -> 0 | AK21: =AK8-AK18-AK20 -> 0 | AL21: =SUM(AM21:AP21) -> 0 | AM21: =AM22+AM23+AM24 -> 0 | AN21: =AN22+AN23+AN24 -> 0 | AO21: =AO22+AO23+AO24 -> 0 | AP21: =AP8-AP18-AP20 -> 0 | AQ21: =SUM(AR21:AU21) -> 0 | AR21: =AR22+AR23+AR24 -> 0 | AS21: =AS22+AS23+AS24 -> 0 | AT21: =AT22+AT23+AT24 -> 0 | AU21: =AU8-AU18-AU20 -> 0
A22: 4.1. | B22: потребителям, присоединенным к сети | C22: =SUM(D22:G22) -> 166393.7429 | F22: 70263.46157 | G22: 96130.28132 | H22: =SUM(I22:L22) -> 171951.6918 | K22: 75022.201 | L22: 96929.4908 | M22: =SUM(N22:Q22) -> 170860.1606 | P22: 71429.98024 | Q22: 99430.18031 | R22: =SUM(S22:V22) -> 171951.6918 | S22: =X22+AC22 -> 0 | T22: =Y22+AD22 -> 0 | U22: =Z22+AE22 -> 75022.201 | V22: =AA22+AF22 -> 96929.4908 | W22: =SUM(X22:AA22) -> 86645.532 | Z22: 37659.168 | AA22: 48986.364 | AB22: =SUM(AC22:AF22) -> 85306.1598 | AE22: 37363.033 | AF22: 47943.1268 | AG22: =SUM(AH22:AK22) -> 0 | AL22: =SUM(AM22:AP22) -> 0 | AQ22: =SUM(AR22:AU22) -> 0
A23: 4.2. | B23: переток в филиал "Владимирэнерго" ПАО «Россети Центр и Приволжье» | C23: =SUM(D23:G23) -> 0 | H23: =SUM(I23:L23) -> 0 | M23: =SUM(N23:Q23) -> 0 | P23: 0 | Q23: 0 | R23: =SUM(S23:V23) -> 0 | W23: =SUM(X23:AA23) -> 0 | AB23: =SUM(AC23:AF23) -> 0 | AG23: =SUM(AH23:AK23) -> 0 | AL23: =SUM(AM23:AP23) -> 0 | AQ23: =SUM(AR23:AU23) -> 0
A24: 4.3. | B24: переток в другие сетевые организации | C24: =SUM(D24:G24) -> 2664.717209 | F24: 2664.717209 | G24: 0 | H24: =SUM(I24:L24) -> 0 | M24: =SUM(N24:Q24) -> 2399.181449 | P24: 2399.181449 | Q24: 0 | R24: =SUM(S24:V24) -> 0 | W24: =SUM(X24:AA24) -> 0 | AB24: =SUM(AC24:AF24) -> 0 | AG24: =SUM(AH24:AK24) -> 0 | AL24: =SUM(AM24:AP24) -> 0 | AQ24: =SUM(AR24:AU24) -> 0
B25: Проверка | D25: =D8-D18-D20-D22-D23-D24-E11-F11-G11 -> 0 | E25: =E8-E18-E20-E22-E23-E24-F12-G12 -> 0 | F25: =F8-F18-F20-F22-F23-F24-G13 -> 0 | G25: =G8-G18-G20-G22-G23-G24 -> 1.455191523e-11 | I25: =I8-I18-I20-I22-I23-I24-J11-K11-L11 -> 0 | J25: =J8-J18-J20-J22-J23-J24-K12-L12 -> 0 | K25: =K8-K18-K20-K22-K23-K24-L13 -> 0 | L25: =L8-L18-L20-L22-L23-L24 -> -1.455191523e-11 | N25: =N8-N18-N20-N22-N23-N24-O11-P11-Q11 -> 0 | O25: =O8-O18-O20-O22-O23-O24-P12-Q12 -> 0 | P25: =P8-P18-P20-P22-P23-P24-Q13 -> 0 | Q25: =Q8-Q18-Q20-Q22-Q23-Q24 -> 1.455191523e-11 | S25: =S8-S18-S20-S22-S23-S24-T11-U11-V11 -> 0 | T25: =T8-T18-T20-T22-T23-T24-U12-V12 -> 0 | U25: =U8-U18-U20-U22-U23-U24-V13 -> 0 | V25: =V8-V18-V20-V22-V23-V24 -> 0 | X25: =X8-X18-X20-X22-X23-X24-Y11-Z11-AA11 -> 0 | Y25: =Y8-Y18-Y20-Y22-Y23-Y24-Z12-AA12 -> 0 | Z25: =Z8-Z18-Z20-Z22-Z23-Z24-AA13 -> 0 | AA25: =AA8-AA18-AA20-AA22-AA23-AA24 -> 0 | AC25: =AC8-AC18-AC20-AC22-AC23-AC24-AD11-AE11-AF11 -> 0 | AD25: =AD8-AD18-AD20-AD22-AD23-AD24-AE12-AF12 -> 0 | AE25: =AE8-AE18-AE20-AE22-AE23-AE24-AF13 -> 0 | AF25: =AF8-AF18-AF20-AF22-AF23-AF24 -> 0.0001000000047 | AH25: =AH8-AH18-AH20-AH22-AH23-AH24-AI11-AJ11-AK11 -> 0 | AI25: =AI8-AI18-AI20-AI22-AI23-AI24-AJ12-AK12 -> 0 | AJ25: =AJ8-AJ18-AJ20-AJ22-AJ23-AJ24-AK13 -> 0 | AK25: =AK8-AK18-AK20-AK22-AK23-AK24 -> 0 | AM25: =AM8-AM18-AM20-AM22-AM23-AM24-AN11-AO11-AP11 -> 0 | AN25: =AN8-AN18-AN20-AN22-AN23-AN24-AO12-AP12 -> 0 | AO25: =AO8-AO18-AO20-AO22-AO23-AO24-AP13 -> 0 | AP25: =AP8-AP18-AP20-AP22-AP23-AP24 -> 0 | AR25: =AR8-AR18-AR20-AR22-AR23-AR24-AS11-AT11-AU11 -> 0 | AS25: =AS8-AS18-AS20-AS22-AS23-AS24-AT12-AU12 -> 0 | AT25: =AT8-AT18-AT20-AT22-AT23-AT24-AU13 -> 0 | AU25: =AU8-AU18-AU20-AU22-AU23-AU24 -> 0

Sheet Баланс мощности
B2: Электрическая мощность по диапазонам напряжения
B3: =#REF! -> 
G5: МВт
A6: № п.п. | B6: Показатели | C6: По данным организации на 2025 год | H6: По данным экспертов на 2025 год
C7: Всего | D7: ВН | E7: СН1 | F7: СН2 | G7: НН | H7: Всего | I7: ВН | J7: СН1 | K7: СН2 | L7: НН
A8: 1 | B8: 2 | C8: 3 | D8: 4 | E8: 5 | F8: 6 | G8: 7 | H8: 8 | I8: 9 | J8: 10 | K8: 11 | L8: 12
A9: 1. | B9: Поступление мощности в сеть , ВСЕГО | C9: =C19+C21+C22 -> 29.1252 | D9: =D15+D16+D17+D18 -> 28.6916608 | E9: =E10+E15+E16+E17+E18 -> 0.4335392 | F9: =F10+F15+F16+F17+F18 -> 29.1252 | G9: =G10+G15+G16+G17+G18 -> 16.61090652 | H9: =H19+H21+H22 -> 0 | I9: =I15+I16+I17+I18 -> 0 | J9: =J10+J15+J16+J17+J18 -> 0 | K9: =K10+K15+K16+K17+K18 -> 0 | L9: =L10+L15+L16+L17+L18 -> 0
A10: 1.1. | B10: из смежной сети, всего | C10: х | D10: х | E10: =E12 -> 0 | F10: =F12+F13 -> 29.1252 | G10: =G12+G13+G14 -> 16.61090652 | H10: х | I10: х | J10: =J12 -> 0 | K10: =K12+K13 -> 0 | L10: =L12+L13+L14 -> 0
B11: в том числе из сети | C11: х | D11: х | E11: х | F11: х | G11: х | H11: х | I11: х | J11: х | K11: х | L11: х
A12: 1.1.1. | B12: ВН | C12: х | D12: х | F12: =D9-D19-D21-D22-G12-E12 -> 28.6916608 | H12: х | I12: х | K12: =I9-I19-I21-I22-L12-J12 -> 0
A13: 1.1.2. | B13: СН1 | C13: х | D13: х | E13: х | F13: =E9-E19-E21-E22-G13 -> 0.4335392 | H13: х | I13: х | J13: х | K13: =J9-J19-J21-J22-L13 -> 0
A14: 1.1.3. | B14: СН2 | C14: х | D14: х | E14: х | F14: х | G14: =F9-F19-F21-F22 -> 16.61090652 | H14: х | I14: х | J14: х | K14: х | L14: =K9-K19-K21-K22 -> 0
A15: 1.2. | B15: от электростанций | C15: =SUM(D15:G15) -> 0 | H15: =SUM(I15:L15) -> 0
A16: 1.3. | B16: от ПАО "Россети ФСК ЕЭС" | C16: =SUM(D16:G16) -> 0 | H16: =SUM(I16:L16) -> 0
A17: 1.4. | B17: от филиала "Владимирэнерго" ПАО «Россети Центр и Приволжье» | C17: =SUM(D17:G17) -> 29.1252 | D17: =28.6707244+0.0209364 -> 28.6916608 | E17: 0.4335392 | H17: =SUM(I17:L17) -> 0
A18: 1.5. | B18: от других сетевых организаций | C18: =SUM(D18:G18) -> 0 | H18: =SUM(I18:L18) -> 0
A19: 2. | B19: Потери мощности в сети | C19: =SUM(D19:G19) -> 2.1871 | D19: =D9*D20/100 -> 0 | E19: =E9*E20/100 -> 0 | F19: =F9*F20/100 -> 1.099672475 | G19: =G9*G20/100 -> 1.087427525 | H19: =SUM(I19:L19) -> 0 | I19: =I9*I20/100 -> 0 | J19: =J9*J20/100 -> 0 | K19: =K9*K20/100 -> 0 | L19: =L9*L20/100 -> 0
A20: 2.1. | B20: то же в % (п.2./п.1.) | C20: =IF(C9=0,0,C19/C9*100) -> 7.509304657 | D20: ='Баланс энергии'!S19 -> 0 | E20: ='Баланс энергии'!T19 -> 0 | F20: ='Баланс энергии'!U19 -> 3.775673559 | G20: 6.546467064 | H20: =IF(H9=0,0,H19/H9*100) -> 0 | I20: ='Баланс энергии'!AH19 -> 0 | J20: ='Баланс энергии'!AI19 -> 0 | K20: ='Баланс энергии'!AJ19 -> 0
A21: 3. | B21: Расход электроэнергии на производственные и хознужды | C21: =SUM(D21:G21) -> 0 | H21: =SUM(I21:L21) -> 0
A22: 4. | B22: Полезный отпуск из сети | C22: =SUM(D22:G22) -> 26.9381 | D22: =D23+D24+D25 -> 0 | E22: =E23+E24+E25 -> 0 | F22: =F23+F24+F25 -> 11.414621 | G22: =G9-G19-G21 -> 15.523479 | H22: =SUM(I22:L22) -> 0 | I22: =I23+I24+I25 -> 0 | J22: =J23+J24+J25 -> 0 | K22: =K23+K24+K25 -> 0 | L22: =L9-L19-L21 -> 0
A23: 4.1. | B23: потребителям, присоединенным к сети | C23: =SUM(D23:G23) -> 26.9381 | F23: 11.414621 | G23: 15.523479 | H23: =SUM(I23:L23) -> 0
A24: 4.2. | B24: переток в филиал "Владимирэнерго" ПАО «Россети Центр и Приволжье» | C24: =SUM(D24:G24) -> 0 | H24: =SUM(I24:L24) -> 0
A25: 4.3. | B25: переток в другие сетевые организации | C25: =SUM(D25:G25) -> 0 | H25: =SUM(I25:L25) -> 0
B26: Проверка | D26: =D9-D19-D21-D23-D24-D25-E12-F12-G12 -> 0 | E26: =E9-E19-E21-E23-E24-E25-F13-G13 -> 0 | F26: =F9-F19-F21-F23-F24-F25-G14 -> 0 | G26: =G9-G19-G21-G23-G24-G25 -> 0 | I26: =I9-I19-I21-I23-I24-I25-J12-K12-L12 -> 0 | J26: =J9-J19-J21-J23-J24-J25-K13-L13 -> 0 | K26: =K9-K19-K21-K23-K24-K25-L14 -> 0 | L26: =L9-L19-L21-L23-L24-L25 -> 0

Sheet Расходы ком. учет (hidden)
A1: Расходы, предусмотренные пунктом 5 статьи 37 Федерального закона от 26 марта 2003 г. N 35-ФЗ "Об электроэнергетике" по обеспечению коммерческого учета ээ
A2: =#REF! -> 
D3: тыс. руб.
B4: № п/п | C4: Наименование показателя | D4: Расчет организации | E4: Расчет экспертов
B5: 1. | C5: Расходы на приобретение, установку, замену приборов учета
B6: 2. | C6: Расходы на допуск в эксплуатацию и поверку приборов учета
B7: 3. | C7: Расходы на приобретение и эксплуатацию нематериальных активов, которые необходимы для обеспечения коммерческого учета
B12: Расходы по обеспечению коммерческого учета ээ | D12: =SUM(D5:D11) -> 0 | E12: =SUM(E5:E11) -> 0
B14: Руководитель организации | D14: =#REF! -> 
C21: В соответствии с положениями пункта 5 статьи 37 Федерального закона от 26 марта 2003 г. № 35-ФЗ «Об электроэнергетике», введенным в действие с 01.07.2020 г. федеральным законом от 27.12.2018 г. № 522-ФЗ:
C22: «О внесении изменений в отдельные законодательные акты Российской Федерации в связи с развитием систем учета электрической энергии (мощности) в Российской Федерации»:
C23: «Сетевые организации в ходе обеспечения коммерческого учета электрической энергии . . . обязаны осуществлять приобретение, установку, замену, допуск в эксплуатацию приборов учета электрической энергии и (или) иного оборудования,
C24: а также нематериальных активов, которые необходимы для обеспечения коммерческого учета электрической энергии . . . при отсутствии, выходе из строя, истечении срока эксплуатации или истечении интервала между поверками приборов учета
C25: электрической энергии и (или) иного оборудования, которые используются для коммерческого учета электрической энергии (мощности)».
C27: В соответствии с п. 3 ст. 23.2 Федерального закона от 26 марта 2003 года № 35-ФЗ «Об электроэнергетике» расходы сетевой организации, понесенные ею для исполнения обязательств, предусмотренных пунктом 5 статьи 37 настоящего Федерального закона,
C28: подлежат включению в состав тарифа на услуги по передаче электрической энергии и (или) платы за технологическое присоединение в соответствии с законодательством Российской Федерации об электроэнергетике.
C29: Расходы сетевой организации, понесенные ею для обеспечения коммерческого учета электрической энергии (мощности), в случаях, не указанных в пункте 5 статьи 37 настоящего Федерального закона, не учитываются при государственном регулировании тарифов.
C30: Финансирование таких расходов осуществляется за счет собственных и привлеченных средств, а также иных не запрещенных законом источников, в том числе средств, полученных в результате экономии, достигнутой сетевой организацией
C31: при осуществлении регулируемых видов деятельности в результате проведения мероприятий по сокращению объема используемых энергетических ресурсов (в том числе потерь энергетических ресурсов при их передаче (поставке) и иных операционных расходов.
C33: При этом, согласно п. 2 Постановления Правительства РФ от 18 апреля 2020 года № 554 «О внесении изменений в некоторые акты Правительства Российской Федерации по вопросам совершенствования организации учета электрической энергии»:
C34: «Используемые на дату вступления в силу настоящего постановления приборы учета электрической энергии, не соответствующие требованиям, указанным в разделе X Основных положений функционирования розничных рынков электрической энергии,
C35: утвержденных постановлением Правительства Российской Федерации от 4 мая 2012 г. № 442 «О функционировании розничных рынков электрической энергии, полном и (или) частичном ограничении режима потребления электрической энергии»,
C36: могут быть использованы вплоть до истечения установленного для них межповерочного интервала, до истечения срока эксплуатации либо до момента выхода таких приборов учета из строя или их утраты».
C38: В соответствии с положениями пункта 5 статьи 37 Федерального закона от 26 марта 2003 г. № 35-ФЗ «Об электроэнергетике», введенным в действие с 01.07.2020 г. федеральным законом от 27.12.2018 г. № 522-ФЗ:
C39: По всем приборам учета электрической энергии, допускаемым в эксплуатацию для целей коммерческого учета электрической энергии (мощности) . . . после 1 января 2022 года, . . . сетевыми организациями должно быть обеспечено безвозмездное предоставление субъектам электроэнергетики и потребителям электрической энергии (мощности),
C40: в отношении которых они обеспечивают коммерческий учет электрической энергии (мощности), минимального набора функций интеллектуальных систем учета электрической энергии (мощности) в порядке, установленном правилами предоставления доступа к минимальному набору функций
C41: интеллектуальных систем учета электрической энергии (мощности), с использованием созданных гарантирующими поставщиками и сетевыми организациями интеллектуальных систем учета электрической энергии (мощности).
C43: С 1 января 2023 года в случае непредоставления или ненадлежащего предоставления . . . сетевой организацией доступа к минимальному набору функций интеллектуальных систем учета электрической энергии (мощности)
C44: субъект электроэнергетики или потребитель электрической энергии (мощности) вправе потребовать уплаты штрафа. Размер штрафа устанавливается в виде фиксированной суммы, определенной в порядке,
C45: установленном правилами предоставления доступа к минимальному набору функций интеллектуальных систем учета электрической энергии (мощности).

Sheet НВВ по данным экспертов (hidden)
A2: Расчет необходимой валовой выручки (НВВ) на оказание услуги по передаче электрической энергии долгосрочного периода регулирования 2025- 2029 годы по данным экспертов
A3: =#REF! -> 
A5: № п.п. | B5: Наименование | C5: Ед.изм. | D5: 2023 год | F5: 2024 год утверждено | G5: 2025 год | H5: 2026 год | I5: 2027 год | J5: 2028 год | K5: 2029 год
D6: Утверждено | E6: Факт
A7: 1 | B7: 2 | C7: 3 | D7: 4 | E7: 5 | F7: 6 | G7: 7 | H7: 8 | I7: 9 | J7: 10 | K7: 11
A8: Долгосрочные параметры регулирования
A9: 1 | B9: Базовый уровень подконтрольных расходов (ПР) | C9: тыс.руб. | D9: х | E9: х | F9: х | G9: =#REF! ->  | H9: х | I9: х | J9: х | K9: х
A10: 2 | B10: Индекс эффективности подконтрольных расходов (Хэф) | C10: % | D10: =#REF! ->  | E10: =D10 ->  | F10: =D10 ->  | G10: =#REF! ->  | H10: =$G$10 ->  | I10: =$G$10 ->  | J10: =$G$10 ->  | K10: =$G$10 -> 
A11: 3 | B11: Коэффициент эластичности подконтрольных расходов по количеству активов (К эл) | C11: знач. | D11: 0.75 | E11: 0.75 | F11: 0.75 | G11: 0.75 | H11: 0.75 | I11: 0.75 | J11: 0.75 | K11: 0.75
A12: 5 | B12: Уровень надежности и качества оказываемых услуг | C12: х | D12: х | E12: х | F12: х | G12: х | H12: х | I12: х | J12: х | K12: х
A13: 5.1. | B13: Показатель средней продолжительности прекращений передачи электрической энергии на точку поставки (Пsaidi), час. | C13: знач. | D13: х | E13: х | F13: х
A14: 5.2. | B14: Показатель средней частоты прекращений передачи электрической энергии на точку поставки (Пsaifi), шт. | C14: знач. | D14: х | E14: х | F14: х
A15: 5.3. | B15: Показатель уровня качества осуществляемого технологического присоединения (Птпр) | C15: знач. | D15: х | E15: х | F15: х
A16: Планируемые значения параметров расчета тарифов
A17: 1 | B17: Индекс потребительских цен (ИПЦ) | C17: % | D17: х | E17: х | F17: =#REF! ->  | G17: =#REF! ->  | H17: =#REF! ->  | I17: =#REF! ->  | J17: =#REF! ->  | K17: =#REF! -> 
A18: 2 | B18: Количество активов (УЕ) | C18: усл.ед. | D18: =#REF! ->  | E18: =#REF! ->  | F18: =#REF! ->  | G18: =#REF! ->  | H18: =#REF! ->  | I18: =#REF! ->  | J18: =#REF! ->  | K18: =#REF! -> 
A19: 3 | B19: Величина неподконтрольных расходов (НР) | C19: тыс.руб. | D19: =D46 -> 
A20: 4 | B20: Величина полезного отпуска электрической энергии | C20: млн.кВт.ч. | D20: ='Баланс энергии'!C21-'Баланс энергии'!C23 -> 169058.4601 | E20: ='Баланс энергии'!H21-'Баланс энергии'!H23 -> 171951.6918 | F20: ='Баланс энергии'!M21-'Баланс энергии'!M23 -> 173259.342 | G20: ='Баланс энергии'!AG21-'Баланс энергии'!AG23 -> 0 | H20: =$G$20 -> 0 | I20: =$G$20 -> 0 | J20: =$G$20 -> 0 | K20: =$G$20 -> 0
A21: 5 | B21: Прогнозная цена (тариф) покупки потерь электрической энергии | C21: руб./МВт.ч. | D21: =D67 -> 
A22: Расчетные показатели
A23: 1 | B23: Доля подконтрольных расходов на МВт.ч. | C23: руб.МВт.ч. | D23: =IF(D20=0,0,D29/D20/10) ->  | G23: 0 | H23: 0 | I23: 0 | J23: 0 | K23: 0
A24: 2 | B24: Проверка прибыли на капитальные вложения (не более 12 % от НВВ на содержание сетей) | C24: % | D24: х | E24: х | F24: х | G24: =IF(G25=0,0,G43/G25) ->  | H24: =IF(H25=0,0,I43/H25) ->  | I24: =IF(I25=0,0,K43/I25) ->  | J24: =IF(J25=0,0,#REF!/J25) ->  | K24: =IF(K25=0,0,L43/K25) -> 
A25: 3 | B25: НВВ для расчета КВЛ | C25: тыс.руб. | D25: х | E25: х | F25: х | G25: =G64-#REF!/0.8-#REF!-#REF!-#REF! ->  | H25: =H64-#REF!/0.8-#REF!-#REF!-#REF! ->  | I25: =I64-#REF!/0.8-#REF!-#REF!-#REF! ->  | J25: =J64-#REF!/0.8-#REF!-#REF!-#REF! ->  | K25: =K64-#REF!/0.8-#REF!-#REF!-#REF! -> 
A26: 4 | B26: Индекс изменения количества активов (ИКА) | C26: % | D26: х | E26: х | F26: х | G26: =#REF! ->  | H26: =#REF! ->  | I26: =#REF! ->  | J26: =#REF! ->  | K26: =#REF! -> 
A27: 5 | B27: Общий коэффициент индексации подконтрольных расходов ПР= ИПЦ*(1+(Кэл*ИКА))*(1-Хэф) | C27: знач. | D27: х | E27: х | F27: х | G27: =#REF! ->  | H27: =#REF! ->  | I27: =#REF! ->  | J27: =#REF! ->  | K27: =#REF! -> 
A28: Подконтрольные расходы организации (ПР)
B29: Итого ПР с учетом индексации: | C29: тыс.руб. | D29: =#REF! ->  | E29: =#REF! ->  | F29: =#REF! ->  | G29: =#REF! ->  | H29: =#REF! ->  | I29: =#REF! ->  | J29: =#REF! ->  | K29: =#REF! -> 
A31: 1 | B31: Амортизация основных средств | C31: тыс.руб. | D31: =#REF! ->  | E31: =#REF! ->  | F31: =#REF! ->  | G31: =#REF! ->  | H31: =#REF! ->  | I31: =#REF! ->  | J31: =#REF! ->  | K31: =#REF! -> 
A32: 2 | B32: Страховые взносы | C32: тыс.руб. | D32: =#REF! ->  | E32: =#REF! ->  | F32: =#REF! ->  | G32: =#REF! ->  | H32: =#REF! ->  | I32: =#REF! ->  | J32: =#REF! ->  | K32: =#REF! -> 
A33: 3 | B33: Расходы на оплату услуг организаций, осуществляющие регулируемые виды деятельности | C33: тыс.руб. | D33: =#REF! ->  | E33: =#REF! ->  | F33: =#REF! ->  | G33: =#REF! ->  | H33: =#REF! ->  | I33: =#REF! ->  | J33: =#REF! ->  | K33: =#REF! -> 
A34: 4 | B34: Налоги и сборы, в том числе: | C34: тыс.руб. | D34: =SUM(D35:D39) ->  | E34: =SUM(E35:E39) -> 
A35: 4.1 | B35: Плата за землю | C35: тыс.руб. | D35: =#REF! ->  | E35: =#REF! ->  | F35: =#REF! ->  | G35: =#REF! ->  | H35: =#REF! ->  | I35: =#REF! ->  | J35: =#REF! ->  | K35: =#REF! -> 
A36: 4.2 | B36: Транспортный налог | C36: тыс.руб. | D36: =#REF! ->  | E36: =#REF! ->  | F36: =#REF! ->  | G36: =#REF! ->  | H36: =#REF! ->  | I36: =#REF! ->  | J36: =#REF! ->  | K36: =#REF! -> 
A37: 4.3 | B37: Налог на имущество | C37: тыс.руб. | D37: =#REF! ->  | E37: =#REF! ->  | F37: =#REF! ->  | G37: =#REF! ->  | H37: =#REF! ->  | I37: =#REF! ->  | J37: =#REF! ->  | K37: =#REF! -> 
A38: 4.4 | B38: Плата за негативное воздействие на окружающую среду | C38: тыс.руб. | D38: =#REF! ->  | E38: =#REF! ->  | F38: =#REF! ->  | G38: =#REF! ->  | H38: =#REF! ->  | I38: =#REF! ->  | J38: =#REF! ->  | K38: =#REF! -> 
A39: 4.5 | B39: Налог на прибыль | C39: тыс.руб. | D39: =#REF! ->  | E39: =#REF! ->  | F39: =#REF! ->  | G39: =#REF! ->  | H39: =#REF! ->  | I39: =#REF! ->  | J39: =#REF! ->  | K39: =#REF! -> 
A40: 5 | B40: Плата за аренду имущества | C40: тыс.руб. | D40: =#REF! ->  | E40: =#REF! ->  | F40: =#REF! ->  | G40: =#REF! ->  | H40: =#REF! ->  | I40: =#REF! ->  | J40: =#REF! ->  | K40: =#REF! -> 
A41: 6 | B41: Оплата услуг ПАО "Россети" | C41: тыс.руб. | D41: =#REF! ->  | E41: =#REF! ->  | F41: =#REF! ->  | G41: =#REF! ->  | H41: =#REF! ->  | I41: =#REF! ->  | J41: =#REF! ->  | K41: =#REF! -> 
A42: 7 | B42: Прочие обоснованные неподконтрольные расходы | C42: тыс.руб. | D42: =#REF! ->  | E42: =#REF! ->  | F42: =#REF! ->  | G42: =#REF! ->  | H42: =#REF! ->  | I42: =#REF! ->  | J42: =#REF! ->  | K42: =#REF! -> 
A43: 8 | B43: Капитальные вложения производственного характера из прибыли | C43: тыс.руб. | D43: =#REF! ->  | E43: =#REF! ->  | F43: =#REF! ->  | G43: =#REF! ->  | H43: =#REF! ->  | I43: =#REF! ->  | J43: =#REF! ->  | K43: =#REF! -> 
A44: 9 | B44: Расходы, связанные с компенсацией выпадающих доходов от льготного технологического присоединения | C44: тыс.руб. | D44: =#REF! ->  | E44: х | F44: =#REF! ->  | G44: =#REF! ->  | H44: х | I44: х | J44: х | K44: х
A45: 10 | B45: =#REF! ->  | C45: тыс.руб. | D45: =#REF! ->  | E45: =#REF! ->  | F45: =#REF! ->  | G45: =#REF! ->  | H45: =#REF! ->  | I45: =#REF! ->  | J45: =#REF! ->  | K45: =#REF! -> 
B46: Итого НР: | C46: тыс.руб. | D46: =SUM(D31:D34,D40:D45) ->  | E46: =SUM(E31:E34,E40:E45) -> 
A48: Корректировка необходимой валовой выручки
A49: 1 | B49: Корректировка подконтрольных расходов | C49: тыс.руб. | D49: =#REF! ->  | E49: =#REF! ->  | F49: =#REF! ->  | G49: =#REF! ->  | H49: x | I49: x | J49: x | K49: x
A50: 2 | B50: Корректировка неподконтрольных расходов | C50: тыс.руб. | D50: =#REF! ->  | E50: =#REF! ->  | F50: =#REF! ->  | G50: =#REF! ->  | H50: x | I50: x | J50: x | K50: x
A51: 3 | B51: Корректировка НВВ с учетом изменения полезного отпуска и цен на электрическую энергию | C51: тыс.руб. | D51: =#REF! ->  | E51: =#REF! ->  | F51: =#REF! ->  | G51: =#REF! ->  | H51: x | I51: x | J51: x | K51: x
A52: 4 | B52: Корректировка необходимой валовой выручки по доходам от осуществления регулируемой деятельности | C52: тыс.руб. | D52: =#REF! ->  | E52: =#REF! ->  | F52: =#REF! ->  | G52: =#REF! ->  | H52: x | I52: x | J52: x | K52: x
A53: 5. | B53: Корректировка расходов по обеспечению коммерческого учета ээ | C53: тыс.руб. | D53: =#REF! ->  | E53: =#REF! ->  | F53: =#REF! ->  | G53: =#REF! ->  | H53: x | I53: x | J53: x | K53: x
A54: 6 | B54: Корректировка НВВ в связи с изменением (неисполнением) инвестиционной программы | C54: тыс.руб. | D54: =#REF! ->  | E54: =#REF! ->  | F54: =#REF! ->  | G54: =#REF! ->  | H54: x | I54: x | J54: x | K54: x
B55: Итого корректировка НВВ на основании фактических данных | C55: тыс.руб. | D55: =SUM(D49:D54) ->  | E55: х | F55: =SUM(F49:F54) ->  | G55: =SUM(G49:G54) ->  | H55: x | I55: x | J55: x | K55: x
A56: Расходы организации на содержание сетей
A57: 1 | B57: Подконтрольные расходы | C57: тыс.руб. | D57: =D29 -> 
A58: 2 | B58: Неподконтрольные расходы | C58: тыс.руб. | D58: =D46 -> 
A59: 3. | B59: Корректировка НВВ на основании фактических данных | C59: тыс.руб. | D59: =D55 ->  | E59: х | F59: =F55 ->  | G59: =G55 ->  | H59: x | I59: x | J59: x | K59: x
A60: 4. | B60: Корректировка НВВ с учетом надежности и качества оказываемых услуг | C60: тыс.руб. | D60: =D56 -> 0 | E60: х | F60: =F56 -> 0 | G60: =#REF! ->  | H60: x | I60: x | J60: x | K60: x
A61: 5. | B61: Экономия расходов на оплату потерь электрической энергии | C61: тыс.руб. | D61: =D57 ->  | E61: х | F61: =F57 ->  | G61: =#REF! ->  | H61: x | I61: x | J61: x | K61: x
A63: 6. | B63: Результаты деятельности регулируемой организации в соотв. с п.7 Основ ценообразования | C63: тыс.руб. | D63: =D59 ->  | E63: х | F63: =F59 ->  | G63: =#REF! ->  | H63: x | I63: x | J63: x | K63: x
B64: Итого расходы на содержание электрических сетей: | C64: тыс.руб. | D64: =D57+D58+D59+D60+D61+D62+D63 ->  | E64: =E57+E58 ->  | F64: =F57+F58+F59+F60+F61+F62+F63 ->  | G64: =G57+G58+G59+G60+G61+G62+G63 ->  | H64: =H57+H58 ->  | I64: =I57+I58 ->  | J64: =J57+J58 ->  | K64: =K57+K58 -> 
A65: Расходы организации на компенсацию потерь
A66: 1 | B66: Величина технологического расхода (потерь) электрической энергии | C66: млн.кВт.ч. | D66: ='Баланс энергии'!C18/1000 -> 13.37209571 | E66: ='Баланс энергии'!H18/1000 -> 13.4243422 | F66: =#REF! ->  | G66: =#REF! ->  | H66: =#REF! ->  | I66: =#REF! ->  | J66: =#REF! ->  | K66: =#REF! -> 
A67: 2 | B67: Прогнозная цена (тариф) покупки потерь электрической энергии | C67: руб./МВт.ч. | D67: =#REF! ->  | E67: =#REF! ->  | F67: =#REF! ->  | G67: =#REF! ->  | H67: =#REF! ->  | I67: =#REF! ->  | J67: =#REF! ->  | K67: =#REF! -> 
A68: 3 | B68: Доля экономии потерь, не учтенная в расходах на содержание | D68: х | E68: х | F68: =#REF! ->  | G68: =#REF! ->  | H68: х | I68: х | J68: х | K68: х
B69: Итого расходы на компенсацию потерь: | C69: тыс.руб. | D69: =D66*D67 ->  | E69: =E66*E67 ->  | F69: =#REF! ->  | G69: =#REF! ->  | H69: =#REF! ->  | I69: =#REF! ->  | J69: =#REF! ->  | K69: =#REF! -> 
A70: Необходимая валовая выручка (НВВ) организации на оказание услуги по передаче электрической энергии
A71: 1 | B71: Расходы на содержание электрических сетей | C71: тыс.руб. | D71: =D64 -> 
A72: 2 | B72: Расходы на компенсацию потерь | C72: тыс.руб. | D72: =D69 -> 
B73: Необходимая валовая выручка (НВВ) организации на оказание услуги по передаче электрической энергии | C73: тыс.руб. | D73: =D71+D72 -> 

Sheet TEHSHEET (hidden)
E7: Январь
E8: Февраль
E9: Март
E10: Апрель
E11: Май
E12: Июнь
E13: Июль
E14: Август
E15: Сентябрь
E16: Октябрь
E17: Ноябрь
E18: Декабрь

Sheet Лист1
